bitfinex-derivatives/quotes_ETHF0:USTF0_20250919
["timestamp","ask_amount","ask_price","bid_price","bid_amount"]
[1758250905769,3.4268,4594.7,4594.6,0.6964]
[1758250905969,4.00522992,4594.7,4594.6,1.59010404]
[1758250906166,0.79742992,4594.7,4594.6,1.59010404]
[1758250906577,0.2394132,4594.7,4594.6,1.59010404]
[1758250907169,0.0685,4595.7,4595.6,0.6964]
[1758250907170,3.3173,4595.7,4595.6,0.6964]
[1758250907376,4.44314192,4595.7,4595.6,1.59010404]
[1758250907573,5.33684596,4595.7,4595.6,0.4961]
[1758250907776,5.40534596,4595.7,4595.6,0.3011]
[1758250908284,9.62294597,4595.7,4595.4,0.0217]
[1758250908581,1.18120404,4595.5,4595.4,0.0217]
[1758250908781,0.1095,4594.7,4594.6,0.3011]
[1758250908984,1.18120404,4594.7,4594.6,0.3011]
[1758250909279,1.67040427,4594.7,4594.6,0.4961]
[1758250909478,1.90969849,4594.7,4594.6,0.4961]
[1758250910180,1.97819849,4594.7,4594.6,0.4961]
[1758250910580,1.90969849,4594.7,4594.0,0.1169]
[1758250910874,1.11270404,4594.1,4593.6,0.3011]
[1758250911075,0.219,4593.6,4593.5,0.613]
[1758250911382,0.2875,4593.5,4593.4,2.1768]
[1758250911583,1.18120404,4593.5,4593.4,2.1768]
[1758250911879,1.18120404,4593.5,4593.4,0.3011]
[1758250912279,1.73917244,4593.5,4593.4,0.3011]
[1758250913080,1.95817244,4593.5,4593.4,0.3011]
[1758250913379,0.2875,4593.4,4593.3,3.2078]
[1758250913586,1.91005801,4593.4,4593.3,3.5089]
[1758250913786,1.91005801,4593.4,4593.3,3.7039]
[1758250914980,0.1095,4592.8,4592.7,0.3011]
[1758250915187,0.219,4592.8,4592.7,0.4961]
[1758250915790,0.219,4592.8,4592.7,0.6964]
[1758250918498,1.11270404,4592.8,4592.7,0.6964]
[1758250918797,1.7377977,4592.8,4592.7,0.3011]
[1758250918993,1.7377977,4592.8,4592.5,0.1169]
[1758250918994,0.2162,4592.6,4592.5,0.4092]
[1758250919297,1.17750404,4592.6,4592.5,0.4092]
[1758250920991,1.73474649,4592.6,4592.5,0.2923]
[1758250921188,1.73474649,4592.6,4592.0,0.1169]
[1758250921189,0.0676,4592.5,4592.0,0.1169]
[1758250921395,1.10990404,4592.1,4592.0,0.6093]
[1758250923300,1.10990404,4592.1,4592.0,1.50300404]
[1758250923301,0.2162,4592.1,4592.0,1.50300404]
[1758250923508,0.2162,4592.1,4592.0,1.71340404]
[1758250923892,0.219,4592.4,4592.1,0.2923]
[1758250924093,3.2078,4592.9,4592.6,0.4105]
[1758250924094,0.219,4592.7,4592.6,0.4105]
[1758250924298,0.55649148,4592.7,4592.6,1.30420404]
[1758250924498,3.2078,4592.9,4592.6,1.59650404]
[1758250924699,1.4500521,4592.8,4592.7,0.7028]
[1758250924997,1.5581521,4592.8,4592.7,0.7028]
[1758250925600,0.66444806,4592.8,4592.7,0.7028]
[1758250925799,3.2078,4592.9,4592.8,0.7028]
[1758250926907,0.219,4593.0,4592.9,0.7028]
[1758250927112,0.219,4593.0,4592.9,1.59650404]
[1758250927910,3.2078,4593.5,4592.9,1.59650404]
[1758250928110,3.4268,4593.5,4593.4,0.7028]
[1758250928404,3.98293527,4593.5,4593.4,0.7028]
[1758250928805,3.4268,4593.5,4593.4,0.7028]
[1758250930009,3.2078,4593.5,4593.4,0.7028]
[1758250932310,0.4352,4593.9,4593.8,0.2001]
[1758250932511,0.4352,4593.9,4593.8,0.4924]
[1758250932711,0.99178699,4593.9,4593.8,0.4924]
[1758250933511,0.99178699,4593.9,4593.8,0.7028]
[1758250933711,0.4352,4593.9,4593.8,0.7028]
[1758250935514,0.2162,4593.2,4593.1,0.2923]
[1758250935705,0.89370404,4593.3,4593.1,0.7028]
[1758250935912,0.89370404,4593.3,4593.2,0.2923]
[1758250936214,0.1081,4593.3,4593.2,1.59650404]
[1758250936410,0.2162,4593.3,4593.2,1.59650404]
[1758250938713,0.1081,4593.3,4593.2,1.59650404]
[1758250940816,0.219,4593.5,4593.2,1.59650404]
[1758250941115,0.1081,4593.4,4593.3,0.7028]
[1758250941313,1.17750404,4593.4,4593.3,0.2923]
[1758250941519,0.2162,4593.1,4593.0,0.3228]
[1758250941810,1.17750404,4593.1,4593.0,0.1227]
[1758250942120,1.97347049,4593.1,4593.0,0.415]
[1758250942415,1.90587049,4593.1,4593.0,0.6151]
[1758250942917,1.97347049,4593.1,4593.0,0.6151]
[1758250943411,1.90587049,4593.1,4593.0,0.6151]
[1758250945517,1.97347049,4593.1,4593.0,0.6151]
[1758250945722,1.90587049,4593.1,4593.0,0.6151]
[1758250947224,1.34776908,4593.1,4593.0,0.6151]
[1758250947525,1.66842117,4593.1,4593.0,0.6151]
[1758250948219,1.73642117,4593.1,4593.0,0.6151]
[1758250948617,1.66842117,4593.1,4593.0,0.6151]
[1758250948823,1.66842117,4593.1,4593.0,0.8203]
[1758250949422,0.77471713,4593.1,4593.0,1.71400404]
[1758250949615,0.55851713,4593.1,4593.0,1.71400404]
[1758250949814,0.55855984,4593.3,4593.0,1.42170404]
[1758250950026,0.66735984,4593.3,4593.2,1.30630404]
[1758250950326,0.90525071,4593.3,4593.2,1.61880404]
[1758250950526,0.90525071,4593.3,4593.2,0.7251]
[1758250951032,1.01405071,4593.3,4593.2,0.7251]
[1758250951231,0.45549087,4593.3,4593.2,0.7251]
[1758250952836,1.01428387,4593.3,4593.2,0.7251]
[1758250953538,0.45549087,4593.3,4593.2,0.7251]
[1758250954037,0.67449087,4593.3,4593.2,0.7251]
[1758250954634,1.23358632,4593.3,4593.2,0.7251]
[1758250955428,4.50938632,4593.3,4593.2,0.3125]
[1758250955632,4.50938632,4593.3,4593.0,0.4352]
[1758250955633,0.2176,4593.1,4593.0,0.4352]
[1758250955933,1.01458632,4593.1,4593.0,0.6426]
[1758250956330,0.79698632,4593.1,4593.0,0.8478]
[1758250958338,0.55909545,4593.1,4593.0,0.8478]
[1758250958538,0.23491027,4593.1,4593.0,0.8478]
[1758250958844,0.79400572,4593.1,4593.0,0.8478]
[1758250959933,0.90280572,4593.1,4593.0,0.8478]
[1758250960436,1.01160572,4593.1,4593.0,0.8478]
[1758250960641,2.34476688,4593.1,4593.0,0.3125]
[1758250961140,2.34476688,4593.1,4593.0,0.4343]
[1758250962440,2.34473206,4593.1,4593.0,0.4343]
[1758250962831,2.27673206,4593.1,4593.0,0.6417]
[1758250965131,1.0129709,4593.1,4593.0,0.8469]
[1758250965940,1.1217709,4593.1,4593.0,0.8469]
[1758250967846,1.2305709,4593.1,4593.0,0.8469]
[1758250968945,1.0115709,4593.1,4593.0,0.8469]
[1758250969146,1.2305709,4593.1,4593.0,0.8469]
[1758250974647,1.23085414,4593.1,4593.0,0.8469]
[1758250975449,1.29835414,4593.1,4593.0,0.6417]
[1758250976343,1.23085414,4593.1,4593.0,0.6417]
[1758250976741,1.12205414,4593.1,4593.0,0.8431]
[1758250976946,1.01325414,4593.1,4593.0,1.88926116]
[1758250977246,0.79425414,4593.1,4593.0,1.88926116]
[1758250977452,0.53739545,4593.1,4593.0,9.09706116]
[1758250977750,0.219,4593.6,4593.5,0.8502]
[1758250977950,0.45419192,4593.6,4593.5,1.89636116]
[1758250979052,0.45419192,4593.6,4593.5,0.8502]
[1758250979248,0.45419192,4593.6,4593.5,1.89636116]
[1758250979849,0.23519192,4593.6,4593.5,0.8502]
[1758250980156,0.34399192,4593.6,4593.5,0.8502]
[1758250980455,0.23519192,4593.6,4593.5,0.8502]
[1758250983050,0.219,4594.0,4593.9,0.7013]
[1758250983255,0.56497671,4594.0,4593.9,0.7013]
[1758250985357,0.56488107,4594.0,4593.9,0.7013]
[1758250985957,0.67368107,4594.0,4593.9,0.7013]
[1758250987359,1.78784223,4594.0,4593.9,0.5079]
[1758250987552,1.78784223,4594.0,4593.9,0.3105]
[1758250987753,1.71984223,4594.0,4593.9,0.5079]
[1758250988651,1.78784223,4594.0,4593.9,0.3105]
[1758250989058,1.71984223,4594.0,4593.9,0.5079]
[1758250989357,2.27928017,4594.0,4593.9,0.5079]
[1758250991359,1.23311901,4594.0,4593.9,0.5079]
[1758250991559,2.27928017,4594.0,4593.9,0.5079]
[1758250992555,1.01551901,4594.0,4593.9,0.7013]
[1758250992960,0.79651901,4594.0,4593.9,0.7013]
[1758250996356,0.79651901,4594.0,4593.9,4.7013]
[1758250996551,0.219,4594.6,4594.5,0.511]
[1758250996763,0.219,4594.6,4594.5,1.86766116]
[1758250997565,0.4167,4594.6,4594.5,1.86766116]
[1758251001165,0.4167,4594.6,4594.5,0.8215]
[1758251002069,0.9217,4594.6,4594.5,0.8215]
[1758251002265,0.9217,4594.6,4594.5,0.5079]
[1758251002463,0.3948,4594.2,4594.1,0.5079]
[1758251002665,0.7027,4594.2,4594.1,0.7013]
[1758251003765,0.3948,4594.2,4594.1,0.7013]
[1758251004067,0.1977,4594.2,4594.1,0.7013]
[1758251005262,0.3079,4594.5,4594.1,0.7013]
[1758251005466,3.2078,4594.8,4594.6,0.3105]
[1758251005656,3.2078,4594.8,4594.7,1.74746116]
[1758251006256,1.24326116,4594.9,4594.5,0.3176]
[1758251006462,0.7027,4594.5,4594.4,0.3105]
[1758251006755,3.9105,4594.5,4594.4,0.3105]
[1758251007162,4.1295,4594.5,4594.4,0.3105]
[1758251007368,4.1295,4594.5,4594.4,0.5079]
[1758251007768,4.248,4594.5,4594.1,0.3105]
[1758251007970,1.44096116,4594.2,4594.1,0.3105]
[1758251008166,1.75796116,4594.2,4594.1,0.3105]
[1758251008564,2.5507156,4594.2,4594.1,0.3105]
[1758251009369,2.7697156,4594.2,4593.7,0.0217]
[1758251009562,0.7087,4593.8,4593.7,0.5339]
[1758251009765,1.26757483,4593.8,4593.7,0.5339]
[1758251009962,1.18453276,4593.8,4593.7,0.7049]
[1758251010268,0.79283276,4593.8,4593.7,0.7049]
[1758251011166,0.55887483,4593.8,4593.7,4.92259]
[1758251011567,3.2078,4594.5,4594.4,0.4002]
[1758251011568,3.4026,4594.5,4594.4,0.4002]
[1758251011760,4.19553165,4594.5,4594.4,0.7049]
[1758251011963,4.70943165,4594.5,4594.4,0.7049]
[1758251012168,4.70943165,4594.5,4594.4,0.5122]
[1758251012369,5.75559281,4594.5,4594.4,0.5122]
[1758251013070,5.87369281,4594.5,4594.1,0.3047]
[1758251013266,1.75486116,4594.2,4594.1,0.5122]
[1758251013472,2.54779281,4594.2,4594.1,0.5122]
[1758251013672,2.54591606,4594.2,4594.1,0.5122]
[1758251014470,1.4997549,4594.2,4594.1,0.5122]
[1758251015064,1.4997549,4594.2,4594.1,0.7049]
[1758251015562,1.1827549,4594.2,4594.1,0.7049]
[1758251016973,1.4997549,4594.2,4594.1,0.7049]
[1758251018676,1.49991425,4594.2,4594.1,0.7049]
[1758251020570,1.49991425,4594.2,4593.9,0.3264]
[1758251020571,2.39354142,4594.2,4593.9,0.3264]
[1758251020770,1.60232717,4594.0,4593.9,0.3264]
[1758251020967,2.39363319,4594.0,4593.9,0.3264]
[1758251021174,2.39363319,4594.0,4593.9,0.3047]
[1758251022672,1.18300602,4594.0,4593.9,0.7049]
[1758251022976,1.18300602,4594.0,4593.9,1.59852717]
[1758251024877,1.50000602,4594.0,4593.9,0.7049]
[1758251025870,1.50000602,4594.0,4593.9,1.59852717]
[1758251026080,1.18300602,4594.0,4593.9,1.59852717]
[1758251026581,1.50000602,4594.0,4593.9,1.59852717]
[1758251026768,1.50000602,4594.0,4593.9,1.40582717]
[1758251026976,1.50000602,4594.0,4593.9,0.3047]
[1758251027183,1.50000602,4594.0,4593.7,0.0217]
[1758251027383,1.50000602,4593.9,4593.8,0.3047]
[1758251027771,1.50000602,4593.9,4593.7,0.3264]
[1758251027974,1.50000602,4593.8,4593.7,0.3264]
[1758251028382,1.50000602,4593.8,4593.7,0.5122]
[1758251028581,2.39363319,4593.8,4593.7,0.5122]
[1758251030590,2.61263319,4593.8,4593.7,0.5122]
[1758251031488,1.71900602,4593.8,4593.7,0.7049]
[1758251031877,1.20510602,4593.8,4593.7,0.7049]
[1758251032081,0.98610602,4593.8,4593.7,0.7049]
[1758251033984,1.50000602,4593.8,4593.7,0.7049]
[1758251034691,1.50000602,4593.8,4593.5,0.0217]
[1758251034986,1.60232717,4593.6,4593.5,0.0217]
[1758251035182,2.39363319,4593.6,4593.5,0.0217]
[1758251035377,2.61263319,4593.6,4593.5,0.3047]
[1758251037091,2.61263319,4593.6,4593.5,0.5159]
[1758251048998,2.61263319,4593.6,4593.3,0.91532717]
[1758251048999,0.6986,4593.4,4593.3,0.0217]
[1758251049205,5.81033319,4593.4,4593.3,0.0217]
[1758251049500,5.81033319,4593.4,4593.0,0.3071]
[1758251049801,1.59222717,4593.1,4593.0,0.3071]
[1758251050001,2.38353319,4593.1,4593.0,0.3071]
[1758251050599,2.38353319,4593.1,4593.0,0.5141]
[1758251050799,1.48990602,4593.1,4593.0,0.5141]
[1758251050997,1.20150602,4593.1,4593.0,0.836]
[1758251051200,0.55909486,4593.1,4593.0,1.94734717]
[1758251051595,3.6376,4593.9,4593.8,0.7208]
[1758251051799,4.21853655,4593.9,4593.8,1.61442717]
[1758251052196,0.79173655,4593.9,4593.8,1.61442717]
[1758251052504,0.219,4594.1,4594.0,0.836]
[1758251052703,0.55990713,4594.3,4594.0,2.31615434]
[1758251053010,0.79186096,4594.2,4594.1,0.7208]
[1758251053703,0.55990713,4594.2,4594.1,0.7208]
[1758251054203,0.55990713,4594.2,4594.1,1.61442717]
[1758251054407,0.55990713,4594.2,4594.1,4.82222717]
[1758251057411,0.55990713,4594.2,4594.1,3.9286]
[1758251057607,0.55990713,4594.2,4594.1,4.82222717]
[1758251058406,1.81122717,4594.7,4594.6,0.207]
[1758251058607,2.60238992,4594.7,4594.6,0.5141]
[1758251060316,2.37064188,4594.7,4594.6,0.5141]
[1758251062810,0.55941471,4594.7,4594.6,1.61442717]
[1758251063116,0.77021471,4594.7,4594.6,1.61442717]
[1758251063313,0.96961471,4594.7,4594.6,1.61442717]
[1758251063508,1.25801471,4594.7,4594.6,1.61442717]
[1758251064109,0.77021471,4594.7,4594.6,1.61442717]
[1758251064309,0.55941471,4594.7,4594.6,1.61442717]
[1758251065718,0.77021471,4594.7,4594.6,1.61442717]
[1758251066119,1.05861471,4594.7,4594.6,1.61442717]
[1758251067519,0.77021471,4594.7,4594.6,1.61442717]
[1758251067724,0.2108,4594.7,4594.6,1.61442717]
[1758251072334,0.2108,4594.7,4594.6,0.7208]
[1758251074327,0.7072,4594.7,4594.6,0.7208]
[1758251074532,0.4156,4594.7,4594.6,0.7208]
[1758251075237,0.97289492,4594.7,4594.6,0.7208]
[1758251075437,0.4156,4594.7,4594.6,0.7208]
[1758251078241,0.6477725,4594.7,4594.6,0.7208]
[1758251079340,1.20548893,4594.7,4594.6,0.7208]
[1758251080140,0.6477725,4594.7,4594.6,0.7208]
[1758251080340,1.20582354,4594.7,4594.6,0.7208]
[1758251085043,1.00102354,4594.7,4594.6,0.7208]
[1758251086938,0.79022354,4594.7,4594.6,0.7208]
[1758251087139,0.79022354,4594.7,4594.6,0.93844]
[1758251087331,0.79022354,4594.7,4594.6,4.14624]
[1758251087532,0.2321725,4594.7,4594.6,3.9286]
[1758251087733,0.2916,4595.5,4595.4,0.1986]
[1758251087942,1.48632611,4595.5,4595.4,0.6911]
[1758251089647,0.98992611,4595.5,4595.4,0.6911]
[1758251093352,0.75702471,4595.5,4595.4,0.6911]
[1758251097855,0.98958328,4595.5,4595.4,0.6911]
[1758251098456,0.219,4596.1,4596.0,0.1246]
[1758251098650,1.20376797,4596.1,4596.0,1.8844817]
[1758251099047,1.70866797,4596.1,4596.0,1.8844817]
[1758251099649,1.17826797,4596.1,4596.0,1.8844817]
[1758251100354,0.79156797,4596.1,4596.0,1.8844817]
[1758251100543,3.401,4596.8,4596.7,0.403]
[1758251100749,4.69731607,4596.8,4596.7,0.7146]
[1758251100944,1.48951607,4596.8,4596.7,0.7146]
[1758251101250,1.48951607,4596.8,4596.7,0.5113]
[1758251102951,1.17811607,4596.8,4596.7,1.7598817]
[1758251103156,0.94558745,4596.8,4596.7,1.7598817]
[1758251104153,0.3867,4596.8,4596.7,1.7598817]
[1758251104758,0.1932,4596.8,4596.7,1.7598817]
[1758251105757,0.75108923,4596.8,4596.7,1.7598817]
[1758251106960,1.25598923,4596.8,4596.7,0.7146]
[1758251107158,0.75108923,4596.8,4596.7,0.7146]
[1758251107358,1.25598923,4596.8,4596.7,0.7146]
[1758251108765,1.0452817,4597.1,4596.7,0.7146]
[1758251108969,0.55759309,4597.0,4596.9,0.403]
[1758251109268,1.25569309,4597.0,4596.9,0.7146]
[1758251110663,0.55759309,4597.0,4596.9,0.7146]
[1758251111064,0.75079309,4597.0,4596.9,0.7146]
[1758251111264,0.94429309,4597.0,4596.9,0.7146]
[1758251111465,1.25569309,4597.0,4596.9,0.7146]
[1758251111759,1.33849309,4597.0,4596.5,0.1463]
[1758251111957,1.7433817,4596.7,4596.6,0.3116]
[1758251112363,1.7433817,4596.7,4596.6,0.5113]
[1758251114068,2.30088986,4596.7,4596.6,0.5113]
[1758251114461,1.25560816,4596.7,4596.6,0.7146]
[1758251115770,0.6981,4596.7,4596.6,0.7146]
[1758251118869,0.1932,4596.7,4596.6,0.7146]
[1758251119076,0.6981,4596.7,4596.6,0.7146]
[1758251121570,0.1932,4597.1,4597.0,0.5276]
[1758251121874,0.75138867,4597.1,4597.0,0.8392]
[1758251122175,1.48539749,4597.1,4597.0,0.8392]
[1758251130380,1.17399749,4597.1,4597.0,0.8392]
[1758251130876,1.48569749,4597.1,4597.0,0.7146]
[1758251131982,1.48569749,4597.1,4597.0,0.5113]
[1758251132584,1.48569749,4597.1,4597.0,0.3116]
[1758251134086,1.48569749,4597.1,4597.0,0.5207]
[1758251135591,1.48569749,4597.1,4597.0,0.8348]
[1758251135889,1.17399749,4597.1,4597.0,0.8348]
[1758251136492,1.48569749,4597.1,4597.0,0.8348]
[1758251137592,1.48569749,4597.1,4597.0,0.7159]
[1758251137793,2.37827572,4597.1,4597.0,0.7159]
[1758251140993,2.37827572,4597.1,4597.0,0.5207]
[1758251144289,2.37827572,4597.1,4597.0,0.6396]
[1758251144791,2.37827572,4597.1,4597.0,0.3116]
[1758251145197,2.37827572,4597.1,4597.0,0.5207]
[1758251150804,2.37827572,4597.1,4597.0,0.6396]
[1758251151004,2.37827572,4597.1,4597.0,0.8348]
[1758251155702,0.98049749,4597.1,4597.0,0.8348]
[1758251156506,1.46409749,4597.1,4597.0,0.8348]
[1758251156801,1.46409749,4597.1,4597.0,0.3116]
[1758251157002,1.46560274,4597.1,4597.0,0.3116]
[1758251157404,0.2897,4597.0,4596.9,0.315]
[1758251157605,2.35748097,4597.0,4596.9,0.5086]
[1758251157908,2.35748097,4597.0,4596.9,0.315]
[1758251158500,2.35748097,4597.0,4596.5,0.1246]
[1758251158501,2.35748097,4597.0,4596.6,0.2937]
[1758251158706,0.6977,4596.7,4596.4,1.11157823]
[1758251158898,0.6977,4596.5,4596.4,1.60977823]
[1758251159098,1.48650274,4596.5,4596.4,1.80827823]
[1758251159293,1.48650091,4596.5,4596.4,1.80683823]
[1758251159807,1.48650091,4596.5,4596.4,1.58927823]
[1758251160402,2.20547914,4596.5,4596.0,0.4183]
[1758251160607,1.59027823,4596.3,4596.2,3.4268]
[1758251160808,2.37906599,4596.3,4596.2,3.4268]
[1758251161107,2.37906599,4596.3,4596.2,3.2078]
[1758251161601,2.37906599,4596.3,4596.0,0.3154]
[1758251161803,2.48285646,4596.1,4596.0,0.0217]
[1758251162006,3.27164422,4596.1,4596.0,0.0217]
[1758251163010,7.27164422,4596.1,4596.0,0.0217]
[1758251163208,0.6977,4595.1,4595.0,0.2937]
[1758251163399,2.14941187,4595.1,4595.0,0.2937]
[1758251164713,2.14941187,4595.1,4595.0,0.4982]
[1758251165103,2.14941187,4595.1,4595.0,0.2937]
[1758251165311,1.59027823,4595.1,4595.0,0.2937]
[1758251166013,1.59027823,4595.1,4595.0,0.4982]
[1758251166409,0.6977,4595.1,4595.0,0.4982]
[1758251168311,0.6977,4595.1,4595.0,0.2937]
[1758251169620,0.6977,4595.1,4595.0,0.4982]
[1758251170721,0.6977,4595.1,4595.0,0.8208]
[1758251176213,3.2078,4595.8,4595.7,0.6967]
[1758251176518,1.59027823,4596.1,4596.0,0.8208]
[1758251176725,2.37845884,4596.1,4596.0,0.8208]
[1758251177815,2.1479821,4596.1,4596.0,0.8208]
[1758251178216,1.6470821,4596.1,4596.0,0.8208]
[1758251178612,0.75450387,4596.1,4596.0,0.8208]
[1758251178814,0.1968,4596.1,4596.0,1.71337823]
[1758251179319,0.219,4596.4,4596.3,0.2937]
[1758251179529,0.219,4596.4,4596.3,0.6967]
[1758251180314,0.4158,4596.4,4596.3,0.6967]
[1758251183322,0.89257823,4596.8,4596.3,0.403]
[1758251183528,1.08937823,4596.8,4596.7,0.6967]
[1758251183727,2.36743067,4596.8,4596.7,0.6967]
[1758251187230,2.59824032,4596.8,4596.7,0.6967]
[1758251190325,2.59824032,4596.8,4596.7,0.4982]
[1758251190527,2.59824032,4596.8,4596.1,3.2078]
[1758251190528,0.7081,4596.2,4596.1,3.2078]
[1758251190731,0.7081,4596.2,4595.6,3.4002]
[1758251190732,0.7081,4595.7,4595.6,3.4002]
[1758251191030,1.30267823,4595.7,4595.6,3.9269]
[1758251191328,0.89257823,4595.9,4595.8,0.1924]
[1758251191531,2.16133319,4595.9,4595.8,0.7191]
[1758251193936,1.86333319,4595.9,4595.8,0.7191]
[1758251194633,1.86342971,4595.9,4595.8,0.7191]
[1758251194834,2.16142971,4595.9,4595.8,0.7191]
[1758251195034,1.60067823,4595.9,4595.8,0.7191]
[1758251195236,2.16142925,4595.9,4595.8,0.7191]
[1758251196536,1.86342925,4595.9,4595.8,0.7191]
[1758251197630,2.16142925,4595.9,4595.8,0.7191]
[1758251197826,1.26885102,4595.9,4595.8,0.7191]
[1758251198432,0.56075102,4595.9,4595.8,0.7191]
[1758251198635,0.56075102,4595.9,4595.8,1.76386896]
[1758251200234,0.79761246,4595.9,4595.8,1.76386896]
[1758251206737,0.53905102,4595.9,4595.8,5.98286896]
[1758251206939,3.6359,4597.1,4597.0,0.8388]
[1758251207138,4.37202273,4597.1,4597.0,0.8388]
[1758251207539,3.44492273,4597.1,4597.0,0.8388]
[1758251209543,0.23712273,4597.1,4597.0,0.8388]
[1758251209749,0.44622273,4597.1,4597.0,0.8388]
[1758251211746,0.44622273,4597.1,4597.0,1.88356896]
[1758251212348,0.44622273,4597.1,4597.0,0.8388]
[1758251212549,0.44608888,4597.1,4597.0,0.8388]
[1758251215353,0.4035,4596.7,4596.6,3.2078]
[1758251215547,0.93038888,4596.7,4596.6,3.7086]
[1758251216051,0.44638888,4596.7,4596.6,3.9151]
[1758251217654,0.64048888,4596.7,4596.6,3.9151]
[1758251217856,0.93038888,4596.7,4596.6,3.9151]
[1758251218060,0.4035,4596.7,4596.6,3.9151]
[1758251218446,0.4035,4596.7,4596.6,0.7073]
[1758251218853,0.96329484,4596.7,4596.6,0.7073]
[1758251219156,0.76919484,4596.7,4596.6,0.7073]
[1758251220658,0.55979484,4596.7,4596.6,0.7073]
[1758251223357,0.76419484,4596.7,4596.6,0.7073]
[1758251224457,0.55979484,4596.7,4596.6,0.7073]
[1758251225565,0.55979484,4596.7,4596.6,0.9263]
[1758251225858,0.717,4597.4,4597.3,0.5235]
[1758251226160,1.50599734,4597.4,4597.3,0.5235]
[1758251227257,0.78899734,4597.4,4597.3,1.76826896]
[1758251227664,0.55972496,4597.4,4597.3,1.76826896]
[1758251228556,0.55972496,4597.4,4597.3,1.98726896]
[1758251231357,0.76412496,4597.4,4597.3,1.98726896]
[1758251231659,0.76412496,4597.4,4597.3,0.9425]
[1758251231862,1.27672496,4597.4,4597.3,0.5357]
[1758251232063,1.27672496,4597.4,4597.3,0.3167]
[1758251232256,1.27672496,4597.4,4597.3,0.5235]
[1758251232456,1.27672496,4597.4,4597.3,0.7235]
[1758251232656,0.97342496,4597.4,4597.3,0.7235]
[1758251233262,1.20277033,4597.4,4597.3,0.7235]
[1758251233460,0.97342496,4597.4,4597.3,0.7235]
[1758251234060,0.76412496,4597.4,4597.3,0.7235]
[1758251234259,0.99351743,4597.4,4597.3,0.7235]
[1758251234461,1.50611743,4597.4,4597.3,0.7235]
[1758251234659,1.50611743,4597.4,4597.3,0.3167]
[1758251234862,1.50611743,4597.4,4597.3,0.7235]
[1758251235452,1.50618171,4597.4,4597.3,0.7235]
[1758251235858,1.50618171,4597.4,4597.3,0.5235]
[1758251240965,1.50618171,4597.4,4597.3,0.7235]
[1758251241765,1.50618171,4597.4,4597.3,0.5235]
[1758251247765,1.5063171,4597.4,4597.3,0.5235]
[1758251251669,1.5063171,4597.4,4597.3,0.7332]
[1758251252768,1.5063171,4597.4,4597.3,0.3167]
[1758251252975,1.5063171,4597.4,4597.3,0.5253]
[1758251254475,1.5063171,4597.4,4597.3,0.735]
[1758251259776,1.5063171,4597.4,4597.3,1.62729783]
[1758251266378,1.2030171,4597.4,4597.1,0.5375]
[1758251266682,0.7129,4597.2,4597.1,0.0217]
[1758251266877,1.5022171,4597.2,4597.1,0.0217]
[1758251267479,1.1851171,4597.2,4596.9,0.89229783]
[1758251267681,1.5022171,4597.1,4596.9,0.89229783]
[1758251267985,1.5022171,4597.0,4596.8,0.219]
[1758251268190,2.39451493,4596.9,4596.8,0.2968]
[1758251268376,0.3171,4596.8,4596.7,1.18909783]
[1758251268581,1.5022171,4596.8,4596.7,1.39769783]
[1758251269677,1.5022171,4596.8,4596.7,1.60739783]
[1758251273490,9.81986493,4596.8,4596.5,0.0217]
[1758251273788,1.60519783,4596.6,4596.5,0.0217]
[1758251273989,2.83106493,4596.6,4596.5,0.0217]
[1758251274187,2.61351493,4596.6,4596.5,0.0217]
[1758251274491,0.3958,4596.0,4595.9,0.2968]
[1758251274787,2.39441493,4596.0,4595.7,0.89229783]
[1758251274987,1.60759783,4595.8,4595.7,1.19099783]
[1758251275190,0.95802496,4595.8,4595.7,1.59059783]
[1758251275788,0.75592496,4595.8,4595.7,1.59059783]
[1758251277289,0.1962,4595.8,4595.7,1.59059783]
[1758251281595,0.5125,4596.2,4595.7,1.59059783]
[1758251281796,0.76880635,4596.1,4596.0,0.5438]
[1758251281993,1.06230635,4596.1,4596.0,0.862]
[1758251282193,1.25940635,4596.1,4596.0,0.862]
[1758251282389,0.55850635,4596.1,4596.0,0.862]
[1758251282596,3.2078,4597.5,4597.0,0.1236]
[1758251282898,3.9087,4598.6,4598.5,0.5292]
[1758251283096,4.46738353,4598.6,4598.5,0.5292]
[1758251283294,4.17388353,4598.6,4598.5,0.862]
[1758251283802,3.6152,4598.6,4598.5,0.862]
[1758251284296,4.80099783,4598.6,4598.5,0.862]
[1758251284602,0.7009,4598.1,4598.0,0.5292]
[1758251284799,0.4074,4598.1,4598.0,0.862]
[1758251285801,0.2103,4598.1,4598.0,0.862]
[1758251286195,0.89229783,4598.5,4598.0,0.862]
[1758251286400,0.2103,4598.3,4598.2,1.63069783]
[1758251290602,0.5038,4598.8,4598.7,0.4202]
[1758251290907,1.28023149,4598.8,4598.7,1.63069783]
[1758251291095,1.28023149,4598.8,4598.7,0.7384]
[1758251291301,0.98673149,4598.8,4598.7,0.7384]
[1758251293202,0.4293,4598.8,4598.7,1.63069783]
[1758251293604,0.4293,4598.8,4598.7,0.7384]
[1758251294105,0.219,4598.8,4598.7,0.7384]
[1758251294305,0.4293,4598.8,4598.7,0.7384]
[1758251294998,0.9199,4598.8,4598.7,0.7384]
[1758251295197,0.9199,4598.8,4598.7,0.5292]
[1758251295709,0.9199,4598.8,4598.7,0.7384]
[1758251296707,0.6264,4598.8,4598.7,0.7384]
[1758251299417,0.9199,4598.8,4598.7,0.7384]
[1758251300710,0.9199,4598.8,4598.7,0.3182]
[1758251300911,0.9199,4598.8,4598.7,0.5292]
[1758251301109,0.7009,4598.8,4598.7,0.5292]
[1758251301306,3.2078,4599.6,4599.1,0.3182]
[1758251301507,3.2078,4599.6,4599.0,0.1236]
[1758251301508,3.2078,4599.6,4599.3,1.63069783]
[1758251301710,0.6603,4599.4,4599.3,1.63069783]
[1758251305915,1.1509,4599.4,4599.3,0.7384]
[1758251309218,1.41528697,4599.4,4599.3,0.7384]
[1758251310312,1.71668697,4599.4,4599.3,0.3182]
[1758251311418,1.94168341,4599.4,4599.3,0.3182]
[1758251311714,1.94168341,4599.4,4599.3,0.5143]
[1758251312310,1.94168341,4599.4,4599.3,0.7203]
[1758251317719,1.64028341,4599.4,4599.3,0.7203]